bitfinex/quotes_ETHUSD_20241101
["timestamp","ask_amount","ask_price","bid_price","bid_amount"]
[1730424754532,3.98241,2511.1,2510.9,0.8256]
[1730424756473,7.96368,2511.4,2510.5,0.7699]
[1730424756733,3.98326,2510.6,2510.0,0.7699]
[1730424756962,7.96652,2510.6,2510.0,0.7699]
[1730424757166,0.873738,2511.3,2510.0,0.7699]
[1730424757372,0.873738,2511.3,2509.6,0.7699]
[1730424757373,0.7737,2510.7,2509.6,0.7699]
[1730424757600,0.7737,2509.9,2509.1,0.01]
[1730424757880,3.98591,2508.9,2508.5,0.7699]
[1730424758036,3.98591,2508.9,2508.1,4.40098979]
[1730424758037,3.98596,2508.8,2508.1,4.40098979]
[1730424758373,3.98596,2508.8,2507.7,0.0119471]
[1730424758593,7.783147,2508.8,2508.7,8.4e-06]
[1730424758748,8.566847,2508.8,2508.7,8.4e-06]
[1730424759276,3.98755,2507.8,2507.7,0.0119471]
[1730424759584,3.98408771,2507.8,2507.7,0.0119471]
[1730424759874,6.98408771,2507.8,2507.7,0.0119471]
[1730424760168,7.78828771,2507.8,2507.7,7.1e-06]
[1730424760373,11.40039788,2507.8,2507.7,7.1e-06]
[1730424760571,11.40039788,2507.8,2507.0,0.005]
[1730424760572,3.98851,2507.2,2507.0,0.005]
[1730424761429,6.98851,2507.2,2507.0,0.005]
[1730424761665,7.81991,2507.2,2507.1,7.3e-06]
[1730424761872,3.01,2507.1,2507.0,7.3e-06]
[1730424762082,6.98883,2507.0,2506.9,7.3e-06]
[1730424762377,3.98883,2507.0,2506.9,7.3e-06]
[1730424763078,3.98835,2507.3,2506.9,7.3e-06]
[1730424763238,0.01,2507.9,2506.9,7.3e-06]
[1730424763239,3.98772,2507.7,2506.9,7.3e-06]
[1730424763433,0.7648,2507.6,2506.9,7.3e-06]
[1730424763785,0.7648,2507.6,2505.0,2.19964706]
[1730424763786,3.9909,2505.7,2504.5,4.00275]
[1730424763936,3.9909,2505.7,2504.5,0.01]
[1730424764131,3.9909,2505.7,2504.2,3.99322]
[1730424764636,12.59544059,2505.7,2505.6,1e-05]
[1730424764842,3.99186,2505.1,2504.0,0.77741]
[1730424765057,3.99186,2505.1,2504.1,3.99329]
[1730424765268,3.99321,2504.3,2503.7,0.1226284]
[1730424765498,3.9928,2504.6,2503.7,0.1226284]
[1730424765714,3.9928,2504.6,2503.7,4.1166784]
[1730424765873,3.9922,2504.9,2503.8,0.41166784]
[1730424766206,3.9922,2504.9,2503.7,4.1266984]
[1730424766207,3.0,2504.7,2503.7,0.1226284]
[1730424766367,3.60211017,2504.9,2503.7,0.1226284]
[1730424766577,7.59429017,2504.9,2503.7,0.1226284]
[1730424766784,3.99234,2504.8,2503.7,4.1167084]
[1730424767004,3.99233,2504.8,2503.7,0.1226284]
[1730424767168,3.9922,2504.9,2504.0,3.99359]
[1730424767364,3.99234,2504.8,2503.8,3.99391]
[1730424767665,4.79144,2505.0,2503.7,0.53531524]
[1730424767666,3.99217,2504.9,2503.7,4.1166984]
[1730424767885,3.99217,2504.9,2503.8,4.78241]
[1730424768219,4.79154,2505.0,2503.9,3.99376]
[1730424768369,4.79154,2505.0,2503.8,4.78238]
[1730424768566,3.99248,2504.8,2503.8,4.77238]
[1730424768887,4.79154,2505.0,2503.8,0.7785]
[1730424768888,4.391748,2504.7,2503.8,0.7785]
[1730424769094,0.399248,2504.7,2503.8,0.7785]
[1730424769583,0.7994,2505.0,2504.0,3.99357]
[1730424769783,4.79141,2505.0,2504.0,3.99357]
[1730424769979,3.99219,2504.9,2504.0,3.99357]
[1730424770206,3.99237,2504.8,2503.8,7.78241]
[1730424770406,3.99287,2504.5,2503.8,0.7785]
[1730424770577,3.99287,2504.5,2503.7,0.1226284]
[1730424770779,4.79141,2504.5,2503.7,0.1226284]
[1730424771170,3.99298,2504.4,2503.7,0.1226284]
[1730424771866,0.02,2504.8,2503.7,0.1226284]
[1730424771867,3.99239,2504.8,2503.7,0.1226284]
[1730424772080,7.59379017,2505.3,2503.7,0.1226284]
[1730424772081,4.79381,2505.4,2504.3,3.993]
[1730424772269,3.99201,2505.0,2504.2,4.81518]
[1730424772495,3.60211017,2505.3,2503.7,0.1326284]
[1730424772701,3.60211017,2505.3,2503.9,4.81559]
[1730424773002,3.99169,2505.2,2504.3,3.99306]
[1730424773204,3.99169,2505.2,2504.1,3.99341]
[1730424773205,3.99202,2505.0,2504.1,3.99341]
[1730424773609,3.99202,2505.0,2504.2,3.99327]
[1730424773792,3.99169,2505.2,2504.2,3.99327]
[1730424774108,3.99169,2505.2,2504.3,3.99309]
[1730424774310,3.99169,2505.2,2504.1,3.99345]
[1730424774311,3.99205,2505.0,2504.2,3.99326]
[1730424774500,3.99191,2505.1,2504.3,3.99309]
[1730424774810,4.790254,2505.1,2504.3,3.99309]
[1730424775376,0.798344,2505.1,2504.4,3.99293]
[1730424775682,0.01,2505.8,2504.4,3.99293]
[1730424775683,1.66061506,2505.7,2505.1,3.99183]
[1730424775904,0.7723,2505.9,2505.3,3.99152]
[1730424776089,3.98998,2506.3,2505.3,3.99152]
[1730424776090,3.99027,2506.1,2505.3,3.99152]
[1730424776301,3.99062,2505.9,2505.2,3.99169]
[1730424776476,3.99062,2505.9,2504.9,3.99215]
[1730424776900,0.02,2506.1,2504.7,0.7996]
[1730424776901,3.99053,2506.0,2505.2,3.99157]
[1730424777110,0.401053,2505.9,2505.3,3.99142]
[1730424777317,0.401053,2505.9,2504.9,3.99202]
[1730424777486,3.99081,2505.8,2504.7,3.99249]
[1730424777690,3.99081,2505.8,2505.1,3.99174]
[1730424777991,3.99081,2505.8,2504.2,0.02]
[1730424777992,3.99006,2506.3,2505.5,0.776]
[1730424778617,3.98967,2506.5,2505.8,3.99071]
[1730424778785,3.98967,2506.5,2505.5,0.776]
[1730424778786,3.98995,2506.3,2505.5,4.76711]
[1730424778976,4.388787,2506.4,2505.7,3.99077]
[1730424779607,4.388877,2506.4,2505.7,3.99077]
[1730424780335,0.01,2506.3,2505.1,0.8235]
[1730424780481,3.9901,2506.2,2505.5,3.9912]
[1730424780682,0.3408967,2506.3,2505.7,3.99088]
[1730424780906,0.3408967,2506.3,2504.9,0.01]
[1730424780907,0.7902,2505.4,2504.2,3.99327]
[1730424781090,3.99104,2505.7,2503.0,0.0119695]
[1730424781091,0.01,2504.1,2503.0,4.0070795]
[1730424781293,8.35412,2503.8,2503.7,8.4e-06]
[1730424781581,3.99504,2503.1,2503.0,0.0119695]
[1730424782226,4.006,2502.5,2501.3,0.005]
[1730424782386,4.006,2502.5,2500.1,0.01]
[1730424782387,4.006,2502.5,2498.5,4.0024]
[1730424782388,102.63907688,2500.0,2498.5,4.0024]
[1730424782734,102.63907688,2500.0,2497.0,9.12584424]
[1730424782735,102.63907688,2500.0,2497.0,7.89473684]
[1730424782736,0.01,2498.3,2497.0,7.89473684]
[1730424783026,0.01,2498.3,2496.5,2.05844302]
[1730424783027,0.59,2497.1,2496.5,2.05844302]
[1730424783240,4.01544,2496.6,2496.5,2.05844302]
[1730424783380,0.7998,2496.0,2495.6,0.1413766]
[1730424783588,0.01,2496.3,2495.6,0.1413766]
[1730424783779,0.55,2496.8,2494.4,4.00895]
[1730424783780,4.00525,2496.8,2494.4,4.00895]
[1730424784028,0.01,2497.6,2494.7,3.60211017]
[1730424784258,0.01,2498.1,2495.2,3.60211017]
[1730424784259,0.01,2495.7,2495.2,3.60211017]
[1730424784464,0.01,2497.7,2495.4,4.00737]
[1730424784755,3.91339163,2498.5,2495.4,4.00737]
[1730424784756,0.01,2498.3,2497.0,4.00472]
[1730424784952,0.01,2498.3,2497.0,0.48067011]
[1730424785154,4.00187,2498.9,2496.9,0.7662]
[1730424785155,0.01,2498.0,2497.1,4.00464]
[1730424785450,0.01,2498.0,2496.9,0.7662]
[1730424785451,0.01,2498.6,2497.2,0.79279911]
[1730424785656,4.00063,2499.7,2497.2,0.79279911]
[1730424785657,0.01,2498.8,2497.2,4.39675511]
[1730424785815,0.01,2499.1,2498.1,4.00302]
[1730424786016,0.01,2499.1,2496.9,0.7662]
[1730424786017,0.01,2498.7,2496.9,0.7662]
[1730424786252,0.02,2498.9,2496.9,0.7662]
[1730424786417,0.01,2499.2,2497.0,0.42123633]
[1730424786615,0.01,2499.6,2498.0,4.00306]
[1730424786856,0.7508,2500.2,2497.5,4.00399]
[1730424786857,0.01,2498.8,2497.5,4.00399]
[1730424787013,7.60565992,2499.9,2497.1,0.57377556]
[1730424787014,0.01,2499.1,2497.2,8.00896]
[1730424787216,0.01,2499.1,2497.1,4.57826556]
[1730424787217,0.01,2498.7,2497.8,4.00342]
[1730424787635,0.01,2498.7,2497.6,4.00381]
[1730424787840,0.02,2499.7,2497.1,0.57377556]
[1730424787841,0.01,2499.0,2498.0,4.00312]
[1730424788063,0.01,2499.1,2497.9,0.55]
[1730424788364,0.02,2498.8,2497.5,4.00397]
[1730424788572,3.52036208,2499.8,2497.5,0.950397]
[1730424788573,0.01,2499.1,2497.5,0.950397]
[1730424788734,0.01,2498.8,2497.9,0.55]
[1730424788931,0.01,2499.1,2498.3,4.00265]
[1730424789155,0.01,2499.3,2498.4,4.00244]
[1730424789533,0.01,2499.3,2497.7,3.0]
[1730424789534,0.01,2499.1,2498.2,4.00287]
[1730424789733,0.01,2499.1,2498.0,4.55312]
[1730424789935,0.01,2499.2,2498.1,0.55]
[1730424790179,0.01,2499.1,2498.2,4.00274]
[1730424790359,0.01,2499.1,2498.4,4.00254]
[1730424790533,0.01,2499.3,2498.5,4.00225]
[1730424790734,0.01,2499.3,2498.6,4.00222]
[1730424790935,0.01,2498.6,2496.7,4.00516]
[1730424791250,0.01,2499.2,2498.2,4.00273]
[1730424791468,0.01,2499.2,2497.0,8.55511926]
[1730424791774,0.01,2498.7,2498.1,4.00291]
[1730424791931,4.00112,2499.3,2498.5,4.00231]
[1730424791932,0.01,2499.3,2498.5,4.00231]
[1730424792126,0.01,2499.3,2497.0,4.55031926]
[1730424792127,0.01,2499.2,2497.6,4.00384]
[1730424792363,0.01,2499.5,2497.9,0.55]
[1730424792543,0.01,2499.5,2498.7,4.00208]
[1730424792739,0.01,2499.5,2498.9,4.00161]
[1730424792964,0.77587066,2499.9,2499.1,4.00142]
[1730424793188,102.63907688,2500.0,2498.7,3.0]
[1730424793467,102.63907688,2500.0,2499.1,4.00129]
[1730424793682,0.01,2499.9,2498.8,4.55186]
[1730424793867,0.01,2499.6,2498.3,4.00259]
[1730424794166,0.01,2499.6,2497.7,4.00368]
[1730424794167,0.01,2498.6,2497.7,4.00368]
[1730424794376,0.01,2498.6,2497.2,0.7732]
[1730424794537,0.01,2498.8,2497.2,0.7732]
[1730424794734,0.005,2498.6,2497.9,4.0032]
[1730424795072,0.01,2499.0,2498.0,4.0032]
[1730424795073,0.005,2499.0,2498.0,4.0032]
[1730424795277,0.005,2498.3,2497.7,4.00367]
[1730424795493,0.005,2498.7,2497.3,4.00432]
[1730424795646,0.01,2498.6,2497.8,4.00349]
[1730424795987,0.01,2498.6,2497.6,4.00379]
[1730424795988,0.005,2499.1,2497.6,4.00384]
[1730424796202,0.005,2499.5,2498.7,4.00199]
[1730424796380,0.005,2499.1,2498.5,4.0024]
[1730424796564,0.005,2499.1,2497.7,7.00354]
[1730424796565,0.005,2499.1,2498.6,4.00222]
[1730424796901,0.005,2499.3,2498.5,4.00239]
[1730424797390,0.005,2499.3,2498.6,4.00222]
[1730424797680,0.005,2499.3,2497.9,4.00327]
[1730424797681,4.00534,2499.8,2498.0,3.0]
[1730424797883,0.01,2499.9,2499.0,4.00157]
[1730424797884,0.005,2499.6,2499.0,4.00157]
[1730424798197,102.65407688,2500.0,2499.2,4.00124]
[1730424798788,106.65407688,2500.0,2499.0,4.00158]
[1730424799402,102.64407688,2500.0,2499.1,4.00142]
[1730424799681,102.63907688,2500.0,2499.2,4.00128]
[1730424799872,0.005,2499.1,2497.5,0.005]
[1730424800068,4.0011,2499.4,2498.4,4.00243]
[1730424800390,0.7844,2499.5,2497.8,4.00352]
[1730424800391,0.7744,2499.5,2497.8,4.00352]
[1730424800585,4.00037,2499.8,2499.0,4.00145]
[1730424800586,0.005,2499.8,2499.0,4.00145]
[1730424800890,0.01,2499.7,2498.7,4.00195]
[1730424801187,0.01,2499.3,2498.4,4.00256]
[1730424801392,0.005,2499.4,2498.7,4.00205]
[1730424801689,0.005,2499.4,2498.2,4.00274]
[1730424801690,0.005,2499.4,2498.8,4.00191]
[1730424801889,0.005,2499.4,2498.5,4.00232]
[1730424802052,0.005,2499.5,2498.3,4.00272]
[1730424802251,0.005,2499.6,2498.9,4.00166]
[1730424802585,0.015,2499.4,2498.3,4.00261]
[1730424802887,103.18403409,2500.0,2498.1,3.0]
[1730424803117,102.63907688,2500.0,2499.4,4.00083]
[1730424803312,102.63907688,2500.0,2499.5,4.00078]
[1730424803503,102.63907688,2500.0,2499.6,4.00049]
[1730424803813,102.63907688,2500.0,2499.0,4.00147]
[1730424803814,0.005,2499.5,2498.8,4.00192]
[1730424803977,106.31004101,2500.0,2498.5,4.00234]
[1730424803978,0.015,2499.3,2498.5,4.00234]
[1730424804171,0.005,2499.3,2498.7,4.00196]
[1730424804368,0.005,2499.6,2498.8,4.0018]
[1730424804576,0.005,2499.6,2498.0,0.8018]
[1730424804776,0.005,2499.6,2498.9,4.00174]
[1730424804979,0.01,2499.9,2499.2,4.00122]
[1730424804980,0.005,2499.8,2499.2,4.00122]
[1730424805174,106.31004101,2500.0,2499.5,4.00077]
[1730424805396,106.31004101,2500.0,2499.4,4.00092]
[1730424805588,106.31504101,2500.0,2499.4,4.00092]
[1730424805908,106.31504101,2500.0,2499.3,4.0011]
[1730424805909,106.32504101,2500.0,2499.3,4.0011]
[1730424806737,102.64407688,2500.0,2499.2,4.00127]
[1730424806903,102.64407688,2500.0,2499.4,4.00091]
[1730424807106,102.64407688,2500.0,2499.6,4.00051]
[1730424807304,102.63907688,2500.0,2499.6,4.00051]
[1730424807467,102.65407688,2500.0,2498.8,3.0]
[1730424807666,102.65407688,2500.0,2499.2,4.00126]
[1730424808599,102.63907688,2500.0,2498.7,4.00208]
[1730424808803,102.63907688,2500.0,2499.6,4.00063]
[1730424809664,102.63907688,2500.0,2499.4,4.00082]
[1730424810181,102.63907688,2500.0,2499.6,4.00063]
[1730424810783,102.63907688,2500.0,2499.8,4.00021]
[1730424810985,102.63907688,2500.0,2499.9,4.00016]
[1730424811185,102.63907688,2500.0,2499.9,5.350197]
[1730424811186,100.63907688,2500.0,2499.9,5.350197]
[1730424811587,98.63907688,2500.0,2499.9,5.350197]
[1730424811790,96.63907688,2500.0,2499.9,5.350197]
[1730424812184,70.63927688,2500.0,2499.9,5.350197]
[1730424812431,32.63967688,2500.0,2499.9,9.157197]
[1730424812720,0.005,2501.8,2501.2,3.99803]
[1730424812925,0.005,2501.8,2500.2,3.0]
[1730424812926,0.005,2501.8,2501.0,3.99837]
[1730424813151,0.005,2501.8,2500.5,3.55]
[1730424813432,0.005,2501.8,2500.4,7.63337313]
[1730424813433,4.01271,2501.5,2500.6,3.99904]
[1730424813615,3.99778,2501.4,2500.4,3.99924]
[1730424813920,0.005,2501.1,2499.9,4.607037]
[1730424814123,0.005,2501.2,2500.5,3.9991]
[1730424814430,0.005,2501.2,2500.5,3.99919]
[1730424814589,0.01,2501.3,2500.6,3.999]
[1730424815188,0.005,2501.4,2500.7,3.99887]
[1730424815387,0.005,2501.4,2500.5,3.99911]
[1730424815588,0.015,2501.4,2500.5,3.99911]
[1730424815918,0.005,2501.4,2500.7,3.99872]
[1730424816331,0.01,2501.6,2500.2,0.55]
[1730424816332,0.005,2501.6,2500.8,3.99861]
[1730424816498,0.005,2501.4,2500.8,3.99861]
[1730424816686,0.005,2501.6,2500.8,3.99857]
[1730424817315,0.005,2501.6,2501.2,3.99796]
[1730424817541,0.005,2501.8,2501.0,7.99655]
[1730424817686,0.005,2501.8,2501.0,0.799655]
[1730424818026,0.005,2502.2,2501.5,3.99759]
[1730424818347,4.77111,2502.5,2501.1,0.55]
[1730424818348,0.7801,2502.5,2501.9,3.99696]
[1730424818531,0.7701,2502.5,2501.9,3.99696]
[1730424818821,0.01,2502.9,2501.9,3.99696]
[1730424819033,0.7751,2503.1,2501.9,4.54696]
[1730424819191,0.005,2502.2,2500.9,3.99847]
[1730424819527,0.005,2502.2,2501.7,3.99726]
[1730424819724,0.01,2502.6,2501.8,3.99705]
[1730424819887,0.005,2502.7,2501.9,0.04902828]
[1730424820083,0.005,2502.7,2501.6,3.99737]
[1730424820084,0.01,2502.4,2501.6,3.99737]
[1730424820318,0.01,2502.4,2501.6,3.99743]
[1730424820529,0.01,2502.4,2501.6,3.99733]
[1730424820738,0.01,2502.1,2501.3,3.99788]
[1730424820917,0.015,2502.1,2501.3,3.99788]
[1730424821244,0.015,2502.1,2501.3,7.99568]
[1730424821389,0.005,2502.1,2501.2,3.99808]
[1730424821589,0.005,2502.1,2501.5,3.99744]
[1730424821897,3.99676,2502.1,2501.6,0.05349901]
[1730424822123,3.99676,2502.1,2501.4,4.05116048]
[1730424822124,0.005,2502.1,2501.4,4.05116048]
[1730424822426,0.005,2502.1,2501.4,3.99765]
[1730424822633,0.005,2502.3,2501.6,3.9973]
[1730424822786,0.015,2502.7,2501.9,3.99696]
[1730424823186,0.005,2502.7,2501.9,3.99696]
[1730424823491,0.015,2502.9,2501.9,4.54696]
[1730424823690,0.7701,2503.1,2501.9,4.54696]
[1730424823886,0.7701,2503.1,2501.9,7.54696]
[1730424824295,0.01,2503.4,2502.6,3.99577]
[1730424824296,0.005,2503.3,2502.6,3.99577]
[1730424824502,0.005,2503.3,2502.8,3.9955]
[1730424824734,0.005,2503.3,2502.8,3.99542]
[1730424824891,0.01,2503.6,2503.1,3.99503]
[1730424825091,0.01,2503.6,2503.0,3.99514]
[1730424825285,0.005,2503.5,2503.0,3.99514]
[1730424825786,0.05996961,2503.8,2503.4,3.99445]
[1730424826052,0.05996961,2503.8,2503.4,7.9889]
[1730424826187,0.05996961,2503.8,2503.4,3.99445]
[1730424827438,0.05996961,2503.8,2503.4,7.9889]
[1730424827589,0.05996961,2503.8,2503.5,3.99438]
[1730424827785,0.05996961,2503.8,2503.4,3.99445]
[1730424828011,0.05996961,2503.8,2503.5,3.99437]
[1730424828220,0.05996961,2503.8,2503.4,3.99445]
[1730424828429,0.05996961,2503.8,2502.6,3.99578]
[1730424828730,0.05996961,2503.8,2502.9,3.55]
[1730424829029,0.05996961,2503.8,2503.7,3.99408]
[1730424829271,0.01,2504.4,2504.0,3.99358]
[1730424829438,0.01,2504.4,2503.8,7.98766]
[1730424829439,0.005,2504.3,2503.8,7.98766]
[1730424829736,4.75524,2504.8,2504.1,3.99335]
[1730424829737,0.7678,2504.8,2504.1,3.99335]
[1730424829890,4.1527419,2505.5,2504.1,3.7849]
[1730424829891,0.015,2505.4,2504.1,3.7849]
[1730424830092,0.005,2505.4,2504.9,3.99216]
[1730424830329,0.1615119,2505.5,2505.2,3.99167]
[1730424830736,0.1615119,2505.5,2505.3,3.99152]
[1730424831026,0.1615119,2505.5,2505.4,3.99137]
[1730424831334,0.1615119,2505.5,2505.4,4.54137]
[1730424831636,0.005,2505.4,2504.7,0.55]
[1730424831846,0.005,2505.4,2504.5,3.99281]
[1730424832013,0.005,2505.4,2505.0,3.99188]
[1730424832213,0.005,2505.4,2504.5,1.2353602]
[1730424832429,0.005,2505.4,2504.9,3.99205]
[1730424832736,0.005,2505.4,2504.7,0.55]
[1730424832911,0.005,2505.4,2504.9,3.99206]
[1730424833120,0.005,2505.4,2504.8,3.99218]
[1730424833318,0.1615119,2505.5,2505.3,3.99139]
[1730424833516,0.1615119,2505.5,2504.8,0.454218]
[1730424833517,0.1615119,2505.5,2505.1,3.99183]
[1730424833733,0.1615119,2505.5,2505.2,3.99159]
[1730424833931,0.1615119,2505.5,2505.1,3.9917]
[1730424834445,0.005,2505.4,2504.9,3.9921]
[1730424834815,0.005,2505.4,2504.9,3.99205]
[1730424835231,0.005,2505.4,2504.4,4.54283]
[1730424835442,0.005,2505.4,2504.8,3.99233]
[1730424835643,0.005,2505.4,2504.8,3.99219]
[1730424835816,0.005,2505.4,2504.9,3.99215]
[1730424836022,0.005,2505.4,2504.8,3.99219]
[1730424836244,3.99639,2505.4,2504.4,3.99285]
[1730424836551,0.005,2505.1,2504.4,3.99286]
[1730424836994,0.005,2505.1,2504.5,3.99279]
[1730424837169,0.7789,2505.3,2504.9,3.99214]
[1730424837483,0.1615119,2505.5,2505.4,3.99137]
[1730424837986,0.1615119,2505.5,2505.4,4.54137]
[1730424838148,0.1615119,2505.5,2505.4,4.62117734]
[1730424838359,0.1615119,2505.5,2505.4,8.88160307]
[1730424838595,0.8322,2506.9,2506.3,3.98989]
[1730424838777,0.8322,2506.9,2505.7,3.99078]
[1730424838778,0.015,2507.2,2506.6,3.98933]
[1730424838984,0.8322,2507.4,2506.7,0.07975374]
[1730424839295,0.005,2507.6,2507.0,3.98871]
[1730424839505,0.005,2507.6,2507.1,0.06351995]
[1730424839792,0.7911,2507.8,2506.6,3.63415313]
[1730424840102,3.99198,2508.2,2507.3,0.55]
[1730424840402,0.8011,2508.6,2507.3,0.55]
[1730424840769,0.005,2508.0,2507.3,0.55]
[1730424841093,0.005,2508.0,2507.2,0.8214]
[1730424841094,0.005,2508.0,2507.2,3.98848]
[1730424841393,0.1615119,2508.8,2507.2,3.98848]
[1730424841394,0.1715119,2508.8,2508.3,3.98676]
[1730424841600,0.1715119,2508.8,2508.3,3.98666]
[1730424841601,0.005,2508.7,2508.3,3.98666]
[1730424841758,0.005,2508.7,2508.0,0.55]
[1730424841958,0.005,2508.7,2508.1,3.98692]
[1730424842618,0.1615119,2508.8,2508.0,4.53723]
[1730424842619,0.1665119,2508.8,2508.0,4.53723]
[1730424842768,0.1665119,2508.8,2507.8,3.98748]
[1730424842769,0.005,2508.4,2507.8,3.98748]
[1730424843073,0.005,2508.4,2507.8,3.98743]
[1730424843276,0.57675709,2508.8,2507.1,3.98854]
[1730424843277,0.005,2507.9,2507.1,3.98854]
[1730424843471,0.015,2507.5,2506.5,3.98957]
[1730424843808,0.005,2507.3,2506.8,3.98904]
[1730424844106,0.005,2507.3,2505.8,3.99065]
[1730424844107,0.005,2506.9,2506.3,3.98988]
[1730424844415,0.01,2507.2,2506.6,3.98944]
[1730424844573,0.978,2507.3,2506.7,3.98927]
[1730424844763,0.978,2507.3,2506.8,3.98913]
[1730424844963,0.978,2507.8,2506.8,0.797857]
[1730424845191,0.978,2507.8,2506.9,0.07485748]
[1730424845390,0.1284672,2507.9,2507.1,3.98858]
[1730424845601,0.1284672,2507.9,2507.8,3.98755]
[1730424845767,0.1284672,2507.9,2507.8,6.98755]
[1730424845970,0.1284672,2507.9,2507.8,12.04212871]
[1730424845971,7.2e-06,2507.9,2507.8,12.04212871]
[1730424846215,7.2e-06,2507.9,2507.8,14.59388558]
[1730424846510,0.005,2509.8,2509.1,4.53549]
[1730424846710,0.01,2509.9,2509.1,4.53549]
[1730424846711,0.005,2509.5,2509.1,4.53549]
[1730424846906,0.01,2509.9,2509.1,4.53549]
[1730424847073,0.005,2509.8,2509.3,3.98516]
[1730424847282,0.005,2509.8,2509.3,0.55]
[1730424847476,0.8949,2510.0,2509.5,3.98485]
[1730424847682,0.005,2510.2,2509.7,3.98452]
[1730424847919,0.01,2510.3,2509.7,3.98452]
[1730424847920,0.01,2510.3,2509.8,3.98437]
[1730424848210,0.005,2510.4,2509.8,3.98433]
[1730424848410,0.005,2510.4,2509.7,3.98452]
[1730424848571,0.005,2510.3,2509.7,3.98452]
[1730424848772,0.005,2510.1,2509.3,4.53513]
[1730424848993,0.005,2510.1,2509.5,3.98474]
[1730424849213,0.9757,2510.5,2509.7,0.55]
[1730424849384,0.005,2510.4,2509.7,0.55]
[1730424849686,0.9757,2510.5,2510.1,3.9839]
[1730424849886,0.015,2510.8,2510.2,3.98362]
[1730424850092,0.9212,2510.9,2510.4,3.98341]
[1730424850279,0.1546533,2511.0,2510.6,0.55]
[1730424850603,0.1546533,2511.0,2509.8,7.9265]
[1730424850604,0.1596533,2511.0,2509.9,0.55]
[1730424850916,3.99814,2510.6,2509.8,0.55]
[1730424851093,0.005,2510.4,2509.8,0.55]
[1730424851289,0.015,2510.8,2509.8,0.55]
[1730424851600,0.015,2510.6,2509.9,0.55]
[1730424851806,0.005,2510.6,2509.9,0.55]
[1730424852045,0.005,2510.6,2510.0,3.98399]
[1730424852533,0.005,2510.6,2509.9,0.55]
[1730424852534,0.015,2510.6,2509.9,0.55]
[1730424852716,0.005,2510.4,2509.9,0.55]
[1730424852922,0.005,2510.4,2509.9,4.5342]
[1730424853096,0.005,2510.4,2509.8,0.55]
[1730424853633,3.99875,2510.2,2509.3,4.93546]
[1730424853806,3.99497,2509.5,2508.6,3.98615]
[1730424854115,3.99497,2509.5,2508.0,4.50466391]
[1730424854116,0.005,2508.7,2508.0,4.40979042]
[1730424854313,0.01,2508.4,2508.0,0.42255042]
[1730424854498,0.005,2508.5,2507.7,0.42255042]
[1730424854694,0.015,2508.5,2507.7,0.42255042]
[1730424854901,0.01,2508.9,2508.3,3.98666]
[1730424855109,0.9472,2509.1,2508.4,3.9866]
[1730424855312,0.9322,2509.1,2508.6,3.98627]
[1730424855511,0.9322,2509.1,2508.8,3.9859]
[1730424855712,0.005,2509.2,2508.8,3.9859]
[1730424855991,0.983,2509.5,2509.0,3.98551]
[1730424856330,0.983,2509.5,2507.3,4.50966391]
[1730424856331,0.005,2509.0,2507.3,4.50966391]
[1730424856498,0.983,2509.5,2507.8,3.98755]
[1730424856499,0.01,2508.6,2507.8,3.98755]
[1730424856689,4.96794,2509.5,2507.6,3.98785]
[1730424856690,0.01,2508.4,2507.6,3.98785]
[1730424857020,3.99145,2508.5,2507.8,3.9874]
[1730424857021,0.005,2508.5,2507.8,3.9874]
[1730424857218,0.005,2508.5,2507.6,0.5647494]
[1730424857219,0.005,2508.7,2508.1,3.98696]
[1730424857422,0.005,2508.7,2507.6,0.5647494]
[1730424857423,0.015,2508.7,2508.0,3.98709]
[1730424857582,0.015,2508.7,2508.1,0.07571998]
[1730424857784,0.015,2508.7,2508.0,3.98712]
[1730424858097,0.015,2508.7,2507.8,3.98745]
[1730424858098,0.005,2508.4,2507.8,3.98745]
[1730424858515,0.005,2508.4,2507.6,3.98784]
[1730424858516,0.005,2508.4,2507.6,3.98776]
[1730424858689,0.405149,2508.4,2507.6,7.97551]
[1730424858896,0.405149,2508.4,2507.6,3.98775]
[1730424858897,0.005,2508.3,2507.6,3.98775]
[1730424859131,0.005,2508.3,2507.7,3.98758]
[1730424859443,0.405149,2508.4,2507.9,3.98739]
[1730424859629,0.9405,2508.5,2508.1,3.98705]
[1730424859825,0.01,2508.4,2507.7,3.98763]
[1730424860018,4.0017,2508.4,2507.6,0.55]
[1730424860218,3.98677,2508.3,2507.6,0.55]
[1730424860421,0.01,2508.2,2507.5,3.98792]
[1730424860605,0.01,2508.2,2507.6,0.07973755]
[1730424860809,0.01,2508.2,2507.6,3.98775]
[1730424861355,0.01,2508.2,2507.5,3.98792]
[1730424861511,0.9405,2508.5,2506.9,3.98895]
[1730424861512,0.015,2507.9,2506.9,3.98895]
[1730424861711,4.50466391,2509.6,2505.8,3.99064]
[1730424861712,0.005,2507.0,2506.4,3.98978]
[1730424861954,0.01,2506.9,2506.4,7.97944]
[1730424862146,0.01,2506.9,2506.4,3.98966]
[1730424862304,0.01,2506.9,2506.2,3.99004]
[1730424862506,0.01,2506.9,2505.9,0.9749]
[1730424862507,0.005,2506.6,2505.9,3.99044]